[Event "FIDE Zonal 4-2 Women 2023"]
[Site "Dimbroko"]
[Date "2023.03.27"]
[Round "2.4"]
[White "Marochkina, Nadezhda Valerevna"]
[Black "Princess K. Banney"]
[Result "1-0"]
[ECO "D02"]
[WhiteElo "1689"]
[BlackElo "1061"]
[Annotator "NA RC COMBH"]
[PlyCount "79"]
[EventDate "2023.03.25"]
[EventType "swiss"]
[SourceTitle "playchess.com"]
[Source "ChessBase"]
[SourceQuality "1"]
[TimeControl "40/5400+30:1800+30"]

1. d4 {[%emt 0:00:05]} d5 {[%emt 0:00:10]} 2. c4 {[%emt 0:00:07]} Nf6 {[%emt 0:02:12]} 3. Nf3 {[%emt 0:00:48]} Bg4 {[%emt 0:01:12]} 4. Ne5 {[%emt 0:06:48]} Bh5 {[%emt 0:04:09]} 5. Qb3 {[%emt 0:03:25]} b6 {[%emt 0:06:17]} 6. e3 {[%emt 0:06:23]} e6 {[%emt 0:01:34]} 7. Nc3 {[%emt 0:03:08]} Bd6 {[%emt 0:02:53]} 8. Qb5+ {[%emt 0:08:07]} Nfd7 {[%emt 0:05:59]} 9. Nxd7 {[%emt 0:04:58]} Qxd7 {[%emt 0:01:17]} 10. cxd5 {[%emt 0:01:18]} O-O {[%emt 0:07:02]} 11. dxe6 {[%emt 0:02:54]} Qxb5 {[%emt 0:00:23]} 12. exf7+ {[%emt 0:00:42]} Bxf7 {[%emt 0:01:41]} 13. Nxb5 {[%emt 0:02:19]} Bb4+ {[%emt 0:04:43]} 14. Bd2 {[%emt 0:00:11]} Bxd2+ {[%emt 0:05:26]} 15. Kxd2 {[%emt 0:00:05]} Na6 {[%emt 0:03:24]} 16. Nc3 {[%emt 0:01:43]} Nb4 {[%emt 0:01:46]} 17. Be2 {[%emt 0:03:17]} Rad8 {[%emt 0:03:16]} 18. a3 {[%emt 0:02:36]} Nd5 {[%emt 0:04:39]} 19. b4 {[%emt 0:05:43]} Nxc3 {[%emt 0:01:03]} 20. Kxc3 {[%emt 0:00:09]} Bd5 {[%emt 0:00:26]} 21. f3 {[%emt 0:00:35]} Rc8 {[%emt 0:05:45]} 22. e4 {[%emt 0:03:40]} Bf7 {[%emt 0:02:27]} 23. Bc4 {[%emt 0:00:59]} c5 {[%emt 0:03:10]} 24. Bxf7+ {[%emt 0:01:03]} Rxf7 {[%emt 0:00:44]} 25. bxc5 {[%emt 0:00:41]} bxc5 {[%emt 0:00:31]} 26. d5 {[%emt 0:00:11]} Rd7 {[%emt 0:04:43]} 27. Rab1 {[%emt 0:00:34]} Kf7 {[%emt 0:02:00]} 28. Kc4 {[%emt 0:02:21]} Ke7 {[%emt 0:05:54]} 29. e5 {[%emt 0:02:30]} Rdd8 {[%emt 0:08:00]} 30. Rb7+ {[%emt 0:01:16]} Rd7 {[%emt 0:01:30]} 31. Rhb1 {[%emt 0:00:25]} Rcd8 {[%emt 0:07:11]} 32. Rxd7+ {[%emt 0:01:15]} Rxd7 {[%emt 0:00:21]} 33. Kxc5 {[%emt 0:00:17]} Rc7+ {[%emt 0:00:38]} 34. Kd4 {[%emt 0:00:08]} Kf7 {[%emt 0:01:17]} 35. Rb2 {[%emt 0:00:24]} Kg6 {[%emt 0:01:49]} 36. f4 {[%emt 0:00:29]} Kf5 {[%emt 0:00:18]} 37. g3 {[%emt 0:00:11]} g5 {[%emt 0:00:15]} 38. fxg5 {[%emt 0:00:25]} Kxg5 {[%emt 0:00:11]} 39. d6 {[%emt 0:00:15]} Rd7 {[%emt 0:00:17]} 40. Kd5 {[%emt 0:00:09]} 1-0

[Event "FIDE Zonal 4-2 Women 2023"]
[Site "Dimbroko"]
[Date "2023.03.27"]
[Round "3.1"]
[White "Rodriguez Guevara, Celia M."]
[Black "Ayemou Mazan Emmanuela Esther"]
[Result "0-1"]
[ECO "C54"]
[WhiteElo "1777"]
[BlackElo "1556"]
[Annotator "NA RC COMBH"]
[PlyCount "52"]
[EventDate "2023.03.25"]
[EventType "swiss"]
[SourceTitle "playchess.com"]
[Source "ChessBase"]
[SourceQuality "1"]
[TimeControl "40/5400+30:1800+30"]

1. e4 {[%emt 0:00:03]} e5 {[%emt 0:00:13]} 2. Nf3 {[%emt 0:00:15]} Nc6 {[%emt 0:00:11]} 3. Bc4 {[%emt 0:00:11]} Bc5 {[%emt 0:00:16]} 4. c3 {[%emt 0:00:17]} Nf6 {[%emt 0:00:14]} 5. d3 {[%emt 0:00:14]} O-O {[%emt 0:00:15]} 6. O-O {[%emt 0:01:08]} h6 {[%emt 0:00:24]} 7. h3 {[%emt 0:00:36]} d6 {[%emt 0:00:21]} 8. Bb3 {[%emt 0:02:57]} Be6 {[%emt 0:02:03]} 9. Bc2 {[%emt 0:02:33]} d5 {[%emt 0:01:08]} 10. Nbd2 {[%emt 0:04:38]} Bb6 {[%emt 0:03:20]} 11. Re1 {[%emt 0:03:47]} Nd7 {[%emt 0:04:49]} 12. Nf1 {[%emt 0:21:40]} dxe4 {[%emt 0:01:29]} 13. dxe4 {[%emt 0:01:02]} Qf6 {[%emt 0:00:27]} 14. Ng3 {[%emt 0:01:54]} Qg6 {[%emt 0:02:37]} 15. Nh4 {[%emt 0:05:52]} Qxg3 {[%emt 0:00:56]} 16. Nf5 {[%emt 0:10:25]} Bxf5 {[%emt 0:00:46]} 17. exf5 {[%emt 0:00:11]} Bxf2+ {[%emt 0:00:27]} 18. Kh1 {[%emt 0:00:12]} Bxe1 {[%emt 0:00:19]} 19. Qxd7 {[%emt 0:00:37]} Qf2 {[%emt 0:01:16]} 20. Qd3 {[%emt 0:02:21]} Rad8 {[%emt 0:00:46]} 21. Qe4 {[%emt 0:01:34]} Bd2 {[%emt 0:02:18]} 22. f6 {[%emt 0:03:02]} Qf1+ {[%emt 0:00:59]} 23. Kh2 {[%emt 0:00:09]} Qf4+ {[%emt 0:00:18]} 24. Qxf4 {[%emt 0:05:26]} exf4 {[%emt 0:00:33]} 25. fxg7 {[%emt 0:00:43]} Rfe8 {[%emt 0:01:23]} 26. Bxd2 {[%emt 0:01:26]} Rxd2 {[%emt 1:15:42]} 0-1

[Event "FIDE Zonal 4-2 Women 2023"]
[Site "Dimbroko"]
[Date "2023.03.27"]
[Round "3.2"]
[White "Abigail Karyah"]
[Black "Marochkina, Nadezhda Valerevna"]
[Result "0-1"]
[ECO "B18"]
[WhiteElo "1620"]
[BlackElo "1689"]
[Annotator "NA RC COMBH"]
[PlyCount "82"]
[EventDate "2023.03.25"]
[EventType "swiss"]
[SourceTitle "playchess.com"]
[Source "ChessBase"]
[SourceQuality "1"]
[TimeControl "40/5400+30:1800+30"]

1. e4 {[%emt 0:00:02]} c6 {[%emt 0:00:22]} 2. d4 {[%emt 0:00:14]} d5 {[%emt 0:00:04]} 3. Nc3 {[%emt 0:00:19]} dxe4 {[%emt 0:00:15]} 4. Nxe4 {[%emt 0:00:10]} Bf5 {[%emt 0:00:09]} 5. Ng3 {[%emt 0:00:25]} Bg6 {[%emt 0:00:07]} 6. Nf3 {[%emt 0:00:21]} e6 {[%emt 0:00:29]} 7. Be2 {[%emt 0:00:17]} Nf6 {[%emt 0:01:34]} 8. Be3 {[%emt 0:04:11]} Nbd7 {[%emt 0:04:26]} 9. Qd2 {[%emt 0:05:21]} Nd5 {[%emt 0:02:43]} 10. c3 {[%emt 0:04:02]} N7f6 {[%emt 0:06:06]} 11. h3 {[%emt 0:02:13]} Bd6 {[%emt 0:03:07]} 12. Ne5 {[%emt 0:04:07]} Qc7 {[%emt 0:02:54]} 13. f4 {[%emt 0:01:07]} Ne4 {[%emt 0:02:13]} 14. Nxe4 {[%emt 0:01:37]} Bxe4 {[%emt 0:00:22]} 15. O-O {[%emt 0:01:08]} O-O {[%emt 0:07:33]} 16. Bd3 {[%emt 0:04:19]} Bxd3 {[%emt 0:00:56]} 17. Qxd3 {[%emt 0:00:23]} Rad8 {[%emt 0:05:51]} 18. Qd2 {[%emt 0:03:48]} c5 {[%emt 0:01:12]} 19. Rad1 {[%emt 0:16:26]} Nxe3 {[%emt 0:04:23]} 20. Qxe3 {[%emt 0:00:12]} cxd4 {[%emt 0:00:19]} 21. cxd4 {[%emt 0:00:19]} Qa5 {[%emt 0:05:11]} 22. Qb3 {[%emt 0:01:49]} Bc7 {[%emt 0:04:33]} 23. a3 {[%emt 0:09:36]} Bb6 {[%emt 0:01:37]} 24. Nf3 {[%emt 0:01:03]} Qf5 {[%emt 0:03:55]} 25. Qe3 {[%emt 0:01:43]} Rd5 {[%emt 0:01:38]} 26. Rd2 {[%emt 0:00:48]} Rfd8 {[%emt 0:00:39]} 27. Rfd1 {[%emt 0:00:35]} Bc7 {[%emt 0:01:42]} 28. Ne5 {[%emt 0:00:51]} h6 {[%emt 0:02:58]} 29. g4 {[%emt 0:02:46]} Qf6 {[%emt 0:01:08]} 30. g5 {[%emt 0:02:31]} Qf5 {[%emt 0:01:31]} 31. gxh6 {[%emt 0:01:21]} g6 {[%emt 0:01:58]} 32. Qg3 {[%emt 0:05:15]} Kh7 {[%emt 0:02:06]} 33. h4 {[%emt 0:04:37]} f6 {[%emt 0:04:22]} 34. Qc3 {[%emt 0:04:43]} Bb8 {[%emt 0:04:19]} 35. Nd3 {[%emt 0:02:05]} Rxd4 {[%emt 0:04:30]} 36. Nf2 {[%emt 0:06:00]} Rxd2 {[%emt 0:00:59]} 37. Rxd2 {[%emt 0:00:19]} Rxd2 {[%emt 0:00:13]} 38. Qxd2 {[%emt 0:00:25]} Bxf4 {[%emt 0:02:11]} 39. Qd7+ {[%emt 0:01:52]} Kxh6 {[%emt 0:00:10]} 40. Qe8 {[%emt 0:01:16]} Kh5 {[%emt 0:00:32]} 41. Qh8+ {[%emt 0:30:55]} Bh6 {[%emt 0:30:06]} 0-1

[Event "FIDE Zonal 4-2 Women 2023"]
[Site "Dimbroko"]
[Date "2023.03.27"]
[Round "3.3"]
[White "Ayemou Akissi Victoire Sinchie"]
[Black "Benson, Maud"]
[Result "0-1"]
[ECO "B07"]
[WhiteElo "1177"]
[BlackElo "1381"]
[Annotator "NA RC COMBH"]
[PlyCount "72"]
[EventDate "2023.03.25"]
[EventType "swiss"]
[SourceTitle "playchess.com"]
[Source "ChessBase"]
[SourceQuality "1"]
[TimeControl "40/5400+30:1800+30"]

1. e4 {[%emt 0:00:04]} d6 {[%emt 0:00:08]} 2. d4 {[%emt 0:00:14]} Nf6 {[%emt 0:00:15]} 3. Nc3 {[%emt 0:00:23]} c6 {[%emt 0:00:26]} 4. Nf3 {[%emt 0:00:25]} Qc7 {[%emt 0:00:11]} 5. Bd3 {[%emt 0:00:40]} Nbd7 {[%emt 0:00:30]} 6. O-O {[%emt 0:00:50]} e5 {[%emt 0:00:08]} 7. Be3 {[%emt 0:00:40]} Be7 {[%emt 0:00:53]} 8. Re1 {[%emt 0:00:38]} Nf8 {[%emt 0:00:23]} 9. Qd2 {[%emt 0:00:55]} Ng6 {[%emt 0:00:21]} 10. a3 {[%emt 0:00:43]} O-O {[%emt 0:00:28]} 11. Bf1 {[%emt 0:00:42]} Bg4 {[%emt 0:02:06]} 12. Be2 {[%emt 0:01:47]} Rfd8 {[%emt 0:06:20]} 13. Ng5 {[%emt 0:02:35]} h6 {[%emt 0:02:12]} 14. Bxg4 {[%emt 0:01:45]} Nxg4 {[%emt 0:00:32]} 15. Nh3 {[%emt 0:00:40]} Qd7 {[%emt 0:03:05]} 16. dxe5 {[%emt 0:01:35]} dxe5 {[%emt 0:01:12]} 17. Qxd7 {[%emt 0:01:04]} Rxd7 {[%emt 0:00:15]} 18. f3 {[%emt 0:00:46]} Nxe3 {[%emt 0:00:18]} 19. Rxe3 {[%emt 0:00:19]} Bc5 {[%emt 0:00:10]} 20. Rae1 {[%emt 0:01:01]} Bxe3+ {[%emt 0:03:39]} 21. Rxe3 {[%emt 0:00:13]} Rd2 {[%emt 0:00:12]} 22. Re2 {[%emt 0:00:35]} Rxe2 {[%emt 0:01:45]} 23. Nxe2 {[%emt 0:00:09]} Rd8 {[%emt 0:00:09]} 24. Kf1 {[%emt 0:05:35]} Rd2 {[%emt 0:01:14]} 25. Nf2 {[%emt 0:00:40]} Rxc2 {[%emt 0:00:53]} 26. Nd3 {[%emt 0:00:29]} Nf4 {[%emt 0:04:08]} 27. Nexf4 {[%emt 0:01:59]} exf4 {[%emt 0:00:11]} 28. a4 {[%emt 0:01:27]} g5 {[%emt 0:00:43]} 29. b4 {[%emt 0:00:32]} Kf8 {[%emt 0:04:45]} 30. Nc5 {[%emt 0:04:37]} b6 {[%emt 0:01:05]} 31. Nd7+ {[%emt 0:00:38]} Ke7 {[%emt 0:00:20]} 32. Ne5 {[%emt 0:00:27]} c5 {[%emt 0:02:54]} 33. bxc5 {[%emt 0:04:42]} Rxc5 {[%emt 0:00:47]} 34. Nd3 {[%emt 0:00:31]} Rc4 {[%emt 0:01:39]} 35. Nb2 {[%emt 0:01:50]} Rc1+ {[%emt 0:00:53]} 36. Ke2 {[%emt 0:01:31]} Rc2+ {[%emt 0:00:36]} 0-1

[Event "FIDE Zonal 4-2 Women 2023"]
[Site "Dimbroko"]
[Date "2023.03.27"]
[Round "3.4"]
[White "Kouassi Edichy Berenice"]
[Black "Yavo Tchetche, Marie"]
[Result "0-1"]
[ECO "E68"]
[WhiteElo "1128"]
[BlackElo "1413"]
[Annotator "NA RC COMBH"]
[PlyCount "62"]
[EventDate "2023.03.25"]
[EventType "swiss"]
[SourceTitle "playchess.com"]
[Source "ChessBase"]
[SourceQuality "1"]
[TimeControl "40/5400+30:1800+30"]

1. d4 {[%emt 0:00:08]} Nf6 {[%emt 0:00:36]} 2. c4 {[%emt 0:00:37]} g6 {[%emt 0:00:58]} 3. Nf3 {[%emt 0:00:27]} Bg7 {[%emt 0:00:56]} 4. g3 {[%emt 0:00:13]} O-O {[%emt 0:00:59]} 5. Bg2 {[%emt 0:00:04]} d6 {[%emt 0:01:33]} 6. O-O {[%emt 0:00:46]} Nbd7 {[%emt 0:00:32]} 7. Re1 {[%emt 0:01:25]} Re8 {[%emt 0:01:37]} 8. Nc3 {[%emt 0:02:03]} e5 {[%emt 0:01:33]} 9. e4 {[%emt 0:02:06]} exd4 {[%emt 0:04:11]} 10. Nxd4 {[%emt 0:03:12]} Nc5 {[%emt 0:02:19]} 11. b3 {[%emt 0:04:14]} Ng4 {[%emt 0:07:11]} 12. f3 {[%emt 0:06:27]} Ne5 {[%emt 0:01:13]} 13. Be3 {[%emt 0:04:05]} a5 {[%emt 0:05:38]} 14. Qd2 {[%emt 0:08:42]} a4 {[%emt 0:04:43]} 15. Ndb5 {[%emt 0:04:01]} Ned3 {[%emt 0:01:15]} 16. Red1 {[%emt 0:04:08]} c6 {[%emt 0:06:58]} 17. Bxc5 {[%emt 0:01:49]} dxc5 {[%emt 0:00:53]} 18. Nd6 {[%emt 0:02:26]} Qxd6 {[%emt 0:56:25]} 19. Qxd3 {[%emt 0:53:07]} Qxd3 {[%emt 0:00:00]} 20. Rxd3 {[%emt 0:00:00]} axb3 {[%emt 0:00:00]} 21. Rad1 {[%emt 0:00:00]} bxa2 {[%emt 0:00:00]} 22. Nxa2 {[%emt 0:00:00]} Bd4+ {[%emt 0:00:00]} 23. Kf1 {[%emt 0:00:00]} Rxa2 {[%emt 0:00:00]} 24. R3d2 {[%emt 0:00:00]} Rxd2 {[%emt 0:00:00]} 25. Rxd2 {[%emt 0:00:00]} Be6 {[%emt 0:00:00]} 26. Rc2 {[%emt 0:00:00]} b5 {[%emt 0:00:00]} 27. cxb5 {[%emt 0:00:00]} cxb5 {[%emt 0:00:00]} 28. Ke1 {[%emt 0:00:00]} b4 {[%emt 0:05:00]} 29. f4 {[%emt 0:00:00]} b3 {[%emt 0:00:00]} 30. Rd2 {[%emt 0:00:00]} Bc3 {[%emt 0:00:00]} 31. Kd1 {[%emt 0:00:00]} Bxd2 {[%emt 0:00:00]} 0-1

[Event "FIDE Zonal 4-2 Women 2023"]
[Site "Dimbroko"]
[Date "2023.03.27"]
[Round "3.5"]
[White "Princess K. Banney"]
[Black "Oyenga, Justine Anassika"]
[Result "1-0"]
[ECO "B01"]
[WhiteElo "1061"]
[BlackElo "1187"]
[Annotator "NA RC COMBH"]
[PlyCount "66"]
[EventDate "2023.03.25"]
[EventType "swiss"]
[SourceTitle "playchess.com"]
[Source "ChessBase"]
[SourceQuality "1"]
[TimeControl "40/5400+30:1800+30"]

1. e4 {[%emt 0:00:16]} d5 {[%emt 0:00:46]} 2. exd5 {[%emt 0:01:17]} Qxd5 {[%emt 0:00:12]} 3. Nc3 {[%emt 0:00:56]} Qa5 {[%emt 0:00:32]} 4. Nf3 {[%emt 0:02:27]} Nf6 {[%emt 0:00:29]} 5. d3 {[%emt 0:02:00]} c6 {[%emt 0:00:46]} 6. Bg5 {[%emt 0:00:49]} Nbd7 {[%emt 0:01:24]} 7. Be2 {[%emt 0:05:13]} Qb4 {[%emt 0:00:54]} 8. Rb1 {[%emt 0:01:52]} e6 {[%emt 0:05:38]} 9. O-O {[%emt 0:03:40]} Be7 {[%emt 0:00:11]} 10. a3 {[%emt 0:00:27]} Qb6 {[%emt 0:00:12]} 11. Ne4 {[%emt 0:03:02]} Nxe4 {[%emt 0:04:59]} 12. dxe4 {[%emt 0:00:36]} O-O {[%emt 0:01:39]} 13. Bxe7 {[%emt 0:00:15]} Re8 {[%emt 0:00:06]} 14. Bb4 {[%emt 0:01:20]} a5 {[%emt 0:01:14]} 15. Bc3 {[%emt 0:00:47]} Nf6 {[%emt 0:00:22]} 16. Bxf6 {[%emt 0:00:16]} gxf6 {[%emt 0:00:09]} 17. Bd3 {[%emt 0:03:05]} Rd8 {[%emt 0:01:03]} 18. e5 {[%emt 0:00:54]} f5 {[%emt 0:04:10]} 19. Qd2 {[%emt 0:01:05]} Kh8 {[%emt 0:04:04]} 20. Qh6 {[%emt 0:01:07]} Rg8 {[%emt 0:01:28]} 21. Ng5 {[%emt 0:00:40]} Rg7 {[%emt 0:01:09]} 22. Qf6 {[%emt 0:06:32]} Qc7 {[%emt 0:02:17]} 23. Rbe1 {[%emt 0:02:26]} b6 {[%emt 0:00:49]} 24. Re3 {[%emt 0:00:15]} Bb7 {[%emt 0:01:08]} 25. Rh3 {[%emt 0:00:47]} Kg8 {[%emt 0:01:41]} 26. Qh6 {[%emt 0:03:56]} Qxe5 {[%emt 0:04:37]} 27. Nxh7 {[%emt 0:03:09]} c5 {[%emt 0:02:43]} 28. Nf6+ {[%emt 0:00:45]} Kf8 {[%emt 0:02:46]} 29. Qh8+ {[%emt 0:00:59]} Ke7 {[%emt 0:00:20]} 30. Qxg7 {[%emt 0:00:36]} Qxf6 {[%emt 0:01:34]} 31. Qxf6+ {[%emt 0:00:30]} Kxf6 {[%emt 0:00:10]} 32. Re1 {[%emt 0:01:28]} Rg8 {[%emt 0:00:32]} 33. g3 {[%emt 0:00:43]} f4 {[%emt 0:00:56]} 1-0

[Event "FIDE Zonal 4-2 Women 2023"]
[Site "Dimbroko"]
[Date "2023.03.27"]
[Round "4.1"]
[White "Ayemou Mazan Emmanuela Esther"]
[Black "Benson, Maud"]
[Result "0-1"]
[ECO "E90"]
[WhiteElo "1556"]
[BlackElo "1381"]
[Annotator "NA RC COMBH"]
[PlyCount "64"]
[EventDate "2023.03.25"]
[EventType "swiss"]
[EventCountry "IVO"]
[SourceTitle "playchess.com"]
[Source "ChessBase"]
[SourceQuality "1"]
[TimeControl "40/5400+30:1800+30"]

1. e4 {[%emt 0:00:06]} d6 {[%emt 0:00:18]} 2. d4 {[%emt 0:00:10]} Nf6 {[%emt 0:00:15]} 3. Bd3 {[%emt 0:00:45]} g6 {[%emt 0:00:29]} 4. Nf3 {[%emt 0:00:20]} Bg7 {[%emt 0:00:09]} 5. c4 {[%emt 0:00:19]} O-O {[%emt 0:01:05]} 6. O-O {[%emt 0:00:23]} Nbd7 {[%emt 0:00:33]} 7. Nc3 {[%emt 0:00:17]} a5 {[%emt 0:00:13]} 8. Re1 {[%emt 0:00:58]} e5 {[%emt 0:00:12]} 9. dxe5 {[%emt 0:01:56]} dxe5 {[%emt 0:06:33]} 10. Bg5 {[%emt 0:01:26]} h6 {[%emt 0:01:39]} 11. Bh4 {[%emt 0:00:24]} c6 {[%emt 0:08:42]} 12. h3 {[%emt 0:01:19]} Qe7 {[%emt 0:01:39]} 13. Qe2 {[%emt 0:02:12]} g5 {[%emt 0:03:21]} 14. Bg3 {[%emt 0:00:14]} Nh5 {[%emt 0:00:59]} 15. Bh2 {[%emt 0:01:40]} Nf4 {[%emt 0:02:48]} 16. Bxf4 {[%emt 0:01:07]} gxf4 {[%emt 0:00:16]} 17. Kh2 {[%emt 0:01:22]} Nc5 {[%emt 0:03:27]} 18. Bc2 {[%emt 0:00:23]} Ne6 {[%emt 0:04:56]} 19. Rg1 {[%emt 0:02:28]} Ng5 {[%emt 0:04:51]} 20. Nxg5 {[%emt 0:15:46]} Qxg5 {[%emt 0:00:55]} 21. g3 {[%emt 0:00:45]} Rd8 {[%emt 0:03:49]} 22. Rg2 {[%emt 0:01:41]} Rd2 {[%emt 0:05:55]} 23. Qxd2 {[%emt 0:00:52]} fxg3+ {[%emt 0:00:28]} 24. Rxg3 {[%emt 0:00:12]} Qxd2 {[%emt 0:00:27]} 25. Rag1 {[%emt 0:00:13]} Qxc2 {[%emt 0:04:56]} 26. Rxg7+ {[%emt 0:00:12]} Kf8 {[%emt 0:01:15]} 27. Rh7 {[%emt 0:02:01]} Qxf2+ {[%emt 0:04:09]} 28. Rg2 {[%emt 0:00:40]} Qf4+ {[%emt 0:01:20]} 29. Rg3 {[%emt 0:00:22]} Ke7 {[%emt 0:02:19]} 30. Rh8 {[%emt 0:02:51]} b6 {[%emt 0:01:21]} 31. Na4 {[%emt 0:02:03]} Bb7 {[%emt 0:02:33]} 32. Rh7 {[%emt 0:00:15]} Rg8 {[%emt 0:00:23]} 0-1

[Event "FIDE Zonal 4-2 Women 2023"]
[Site "Dimbroko"]
[Date "2023.03.27"]
[Round "4.2"]
[White "Marochkina, Nadezhda Valerevna"]
[Black "Rodriguez Guevara, Celia M."]
[Result "1-0"]
[ECO "D37"]
[WhiteElo "1689"]
[BlackElo "1777"]
[Annotator "NA RC COMBH"]
[PlyCount "59"]
[EventDate "2023.03.25"]
[EventType "swiss"]
[EventCountry "IVO"]
[SourceTitle "playchess.com"]
[Source "ChessBase"]
[SourceQuality "1"]
[TimeControl "40/5400+30:1800+30"]

1. d4 {[%emt 0:00:06]} d5 {[%emt 0:00:12]} 2. c4 {[%emt 0:00:05]} e6 {[%emt 0:00:15]} 3. Bf4 {[%emt 0:01:34]} Nf6 {[%emt 0:00:38]} 4. e3 {[%emt 0:00:54]} Be7 {[%emt 0:01:13]} 5. Nf3 {[%emt 0:00:29]} Nbd7 {[%emt 0:01:34]} 6. Nc3 {[%emt 0:01:17]} a6 {[%emt 0:16:10]} 7. Qb3 {[%emt 0:03:26]} dxc4 {[%emt 0:23:23]} 8. Qxc4 {[%emt 0:03:09]} c6 {[%emt 0:17:18]} 9. Be2 {[%emt 0:03:20]} O-O {[%emt 0:00:27]} 10. O-O {[%emt 0:00:36]} Nb6 {[%emt 0:01:13]} 11. Qb3 {[%emt 0:00:39]} Nbd5 {[%emt 0:03:26]} 12. Bg3 {[%emt 0:01:31]} Nh5 {[%emt 0:06:48]} 13. Rac1 {[%emt 0:04:19]} Nxg3 {[%emt 0:00:40]} 14. hxg3 {[%emt 0:00:06]} Qa5 {[%emt 0:16:25]} 15. Rfd1 {[%emt 0:08:52]} Rd8 {[%emt 0:02:29]} 16. Bc4 {[%emt 0:05:01]} Rb8 {[%emt 0:01:38]} 17. e4 {[%emt 0:04:56]} Nf6 {[%emt 0:01:20]} 18. d5 {[%emt 0:01:40]} b5 {[%emt 0:01:16]} 19. dxe6 {[%emt 0:01:46]} bxc4 {[%emt 0:00:15]} 20. Rxd8+ {[%emt 0:01:08]} Qxd8 {[%emt 0:00:48]} 21. exf7+ {[%emt 0:00:18]} Kf8 {[%emt 0:00:02]} 22. Qxb8 {[%emt 0:00:29]} Be6 {[%emt 0:02:11]} 23. Qxd8+ {[%emt 0:02:20]} Bxd8 {[%emt 0:00:01]} 24. Ne5 {[%emt 0:00:53]} Bc7 {[%emt 0:01:08]} 25. Nxc6 {[%emt 0:00:31]} Kxf7 {[%emt 0:00:15]} 26. Nd4 {[%emt 0:01:25]} a5 {[%emt 0:01:19]} 27. Nxe6 {[%emt 0:02:16]} Kxe6 {[%emt 0:00:02]} 28. Na4 {[%emt 0:01:55]} Bd6 {[%emt 0:01:17]} 29. Rxc4 {[%emt 0:00:17]} Ke5 {[%emt 0:00:18]} 30. f4+ {[%emt 0:50:12]} 1-0

[Event "FIDE Zonal 4-2 Women 2023"]
[Site "Dimbroko"]
[Date "2023.03.27"]
[Round "4.3"]
[White "Yavo Tchetche, Marie"]
[Black "Abigail Karyah"]
[Result "1/2-1/2"]
[ECO "A13"]
[WhiteElo "1413"]
[BlackElo "1620"]
[Annotator "NA RC COMBH"]
[PlyCount "130"]
[EventDate "2023.03.25"]
[EventType "swiss"]
[EventCountry "IVO"]
[SourceTitle "playchess.com"]
[Source "ChessBase"]
[SourceQuality "1"]
[TimeControl "40/5400+30:1800+30"]

1. c4 {[%emt 0:00:41]} e6 {[%emt 0:00:02]} 2. e3 {[%emt 0:01:22]} Nf6 {[%emt 0:00:32]} 3. Nf3 {[%emt 0:01:15]} Be7 {[%emt 0:00:27]} 4. g3 {[%emt 0:00:41]} d5 {[%emt 0:00:50]} 5. cxd5 {[%emt 1:29:01]} exd5 {[%emt 1:31:09]} 6. Bg2 {[%emt 0:00:00]} O-O {[%emt 0:00:00]} 7. O-O {[%emt 0:00:00]} c6 {[%emt 0:00:00]} 8. b3 {[%emt 0:00:00]} Bf5 {[%emt 0:00:00]} 9. d3 {[%emt 0:00:00]} h6 {[%emt 0:00:00]} 10. Bb2 {[%emt 0:00:00]} Nbd7 {[%emt 0:00:00]} 11. Nc3 {[%emt 0:00:00]} Re8 {[%emt 0:00:00]} 12. Re1 {[%emt 0:00:00]} Bf8 {[%emt 0:00:00]} 13. d4 {[%emt 0:00:00]} Ne4 {[%emt 0:00:00]} 14. Nh4 {[%emt 0:00:00]} Nxc3 {[%emt 0:00:00]} 15. Bxc3 {[%emt 0:00:00]} Bh7 {[%emt 0:00:00]} 16. Nf3 {[%emt 0:00:00]} Bd6 {[%emt 0:00:00]} 17. Nd2 {[%emt 0:00:00]} Nf6 {[%emt 0:00:00]} 18. f3 {[%emt 0:00:00]} Qb6 {[%emt 0:00:00]} 19. Kh1 {[%emt 0:00:00]} Bb4 {[%emt 0:00:00]} 20. Qc1 {[%emt 0:00:00]} Bxc3 {[%emt 0:00:00]} 21. Qxc3 {[%emt 0:00:00]} Rad8 {[%emt 0:00:00]} 22. a3 {[%emt 0:00:00]} Re7 {[%emt 0:00:00]} 23. b4 {[%emt 0:00:00]} Rde8 {[%emt 0:00:00]} 24. Nb3 {[%emt 0:00:00]} Qb5 {[%emt 0:00:00]} 25. a4 {[%emt 0:00:00]} Qd3 {[%emt 0:00:00]} 26. Qxd3 {[%emt 0:10:30]} Bxd3 {[%emt 0:10:30]} 27. Nc5 {[%emt 0:00:00]} Bh7 {[%emt 0:00:00]} 28. Ra3 {[%emt 0:00:00]} b6 {[%emt 0:00:00]} 29. Na6 {[%emt 0:00:00]} Bf5 {[%emt 0:00:00]} 30. b5 {[%emt 0:00:00]} cxb5 {[%emt 0:00:00]} 31. axb5 {[%emt 0:00:00]} Bc8 {[%emt 0:00:00]} 32. Nb4 {[%emt 0:00:00]} Rc7 {[%emt 0:00:00]} 33. Bf1 {[%emt 0:00:00]} Bd7 {[%emt 0:00:00]} 34. Nc6 {[%emt 0:00:00]} Ra8 {[%emt 0:00:00]} 35. Rc3 {[%emt 0:00:00]} Kf8 {[%emt 0:00:00]} 36. e4 {[%emt 0:00:00]} a6 {[%emt 0:00:00]} 37. e5 {[%emt 0:00:00]} Ne8 {[%emt 0:00:00]} 38. Rec1 {[%emt 0:00:00]} axb5 {[%emt 0:00:00]} 39. Bxb5 {[%emt 0:00:00]} Bxc6 {[%emt 0:00:00]} 40. Rxc6 {[%emt 0:00:00]} Rac8 {[%emt 0:00:00]} 41. Kg2 {[%emt 0:00:17]} Ke7 {[%emt 0:16:46]} 42. Kf2 {[%emt 0:00:24]} Kd8 {[%emt 0:01:32]} 43. Ke3 {[%emt 0:01:24]} Ra8 {[%emt 0:03:43]} 44. Bd3 {[%emt 0:04:07]} Ra3 {[%emt 0:03:39]} 45. Rxc7 {[%emt 0:01:27]} Nxc7 {[%emt 0:00:03]} 46. Rc6 {[%emt 0:01:38]} b5 {[%emt 0:00:00]} 47. f4 {[%emt 0:00:00]} b4 {[%emt 0:00:00]} 48. f5 {[%emt 0:00:00]} Ra2 {[%emt 0:00:00]} 49. e6 {[%emt 0:00:00]} fxe6 {[%emt 0:00:00]} 50. fxe6 {[%emt 0:00:00]} Ne8 {[%emt 0:00:00]} 51. Rc5 {[%emt 0:00:00]} Nf6 {[%emt 0:00:00]} 52. h4 {[%emt 0:00:00]} Ke7 {[%emt 0:00:00]} 53. Rb5 {[%emt 0:00:00]} Kxe6 {[%emt 0:00:00]} 54. Rxb4 {[%emt 0:00:00]} Ra7 {[%emt 0:02:50]} 55. Kf4 {[%emt 0:00:00]} Kf7 {[%emt 0:01:22]} 56. g4 {[%emt 0:00:00]} g6 {[%emt 0:00:15]} 57. g5 {[%emt 0:00:00]} hxg5+ {[%emt 0:00:48]} 58. Kxg5 {[%emt 0:00:00]} Ne4+ {[%emt 0:00:33]} 59. Bxe4 {[%emt 0:37:13]} dxe4 {[%emt 0:14:59]} 60. Kf4 {[%emt 0:00:00]} Ra3 {[%emt 0:00:00]} 61. Kxe4 {[%emt 0:00:00]} Rh3 {[%emt 0:00:00]} 62. Rb7+ {[%emt 0:00:00]} Kf6 {[%emt 0:00:00]} 63. Rh7 {[%emt 0:00:00]} Rh1 {[%emt 0:00:00]} 64. d5 {[%emt 0:00:00]} Re1+ {[%emt 0:00:00]} 65. Kd4 {[%emt 0:03:00]} Ra1 {[%emt 0:03:00]} 1/2-1/2